{"text_format":"3","workbook":"xlsx","n_sheets":2,"sheets":["UTILIZAREA REGISTRULUI DE LUCRU","CATALOG"],"not_rendered":{"defined_names":7},"read":"whole","date_system":"1900"}

{"sheet":"UTILIZAREA REGISTRULUI DE LUCRU","index":0,"n_rows":10,"n_cols":2,"rows_kept":10}
[null,"INSTRUCȚIUNI"]
[null,"Utilizați foaia de lucru CATALOG pentru a calcula notele, unde fiecare temă este echivalată cu un număr stabilit de puncte. "]
[null,"Instrucțiuni: Asigurați-vă că salvați copii backup ale notelor dvs."]
[null,"1. Completați cu numele școlii, informații despre curs, numele elevilor și ID-urile lor (opțional).   "]
[null,"2. Ajustați tabelul de Note și medie generală pentru a se potrivi cu sistemul de note tipic utilizat."]
[null,"3. Completați de numele temei, chestionarului sau testului (de exemplu, „Chestionar 1”) începând de la celula H8, împreună cu punctele atribuite fiecărei teme. "]
[null,"4. Completați rezultatele pentru fiecare elev, pentru fiecare temă sau testare. Coloanele „Medie”, „Scor”, „Calificativ literă” și „general” sunt calculate automat, dar le puteți înlocui dacă doriți. Pentru a acorda puncte de credit suplimentare, pur și simplu dați mai multe puncte pentru o temă decât punctele totale posibile listate pentru acea temă."]
[null,"Utilizați comanda „Zonă de imprimare” din meniul Aspect pagină dacă doriți să schimbați ce se imprimă."]
[null,"Punctajele pentru note se bazează pe o scară procentuală standard, în funcție de numărul total de puncte atribuite în rândurile 8 și 9. Ajustați fiecare temă sau test la punctele dorite, apoi ajustați procentul la nota potrivită. Suprascrieți celulele Scor pentru a efectua manual modificări."]
[null,"Introduceți fiecare temă, chestionar sau test și punctele respective în celule H8-X9."]

{"sheet":"CATALOG","index":1,"n_rows":24,"n_cols":24,"rows_kept":24,"merged":[[1,1,2,6],[3,1,3,6],[4,1,6,6],[7,4,7,6],[8,4,8,6],[10,4,10,6],[11,4,11,6],[19,1,19,6],[20,1,20,2],[20,3,20,4],[21,1,21,2],[21,3,21,4],[22,1,22,2],[22,3,22,4],[23,1,23,2],[23,3,23,4]]}
[null,"NUMELE ȘCOLII"]
[null,"Numele profesorului"]
[{"$nulls":7},"Scor",{"$f":"I4*TotalPuncte","v":118},120,126,134,140,{"v":145.6666666666666,"d":"146"},154,160,166,174,180,186,194]
[null,"Curs/proiect",{"$nulls":5},"%",{"v":0.59,"d":"59%"},{"v":0.6,"d":"60%"},{"v":0.63,"d":"63%"},{"v":0.67,"d":"67%"},{"v":0.7,"d":"70%"},{"v":0.728333333333333,"d":"73%"},{"v":0.77,"d":"77%"},{"v":0.8,"d":"80%"},{"v":0.83,"d":"83%"},{"v":0.87,"d":"87%"},{"v":0.9,"d":"90%"},{"v":0.93,"d":"93%"},{"v":0.97,"d":"97%"}]
[null,"An/semestru/trimestru",{"$nulls":5},"Calificativ literă","F","D-","D","D+","C-","C","C+","B-","B","B+","A-","A","A+"]
[{"$nulls":7},"Medie generală",0,0.67,1,1.33,1.67,2,2.33,2.67,3,3.33,3.67,4,4]
[]
[{"$nulls":4},"Numele temei sau testului",null,null,"HW1","HW2","T1"]
[{"$nulls":4},"Total puncte disponibile",null,null,50,50,100]
[]
[{"$nulls":4},"Numărul total de teme și teste:",null,null,{"$f":"COUNTA(H8:X8)","v":3}]
[{"$nulls":4},"Total posibil de puncte:",null,null,{"$f":"SUM(H9:X9)","v":200}]
[]
[null,"Numele elevului","ID elev","Medie","Scor","Calificativ literă","Medie generală","Coloana6","Coloana7","Coloana8","Coloana9","Coloana10","Coloana11","Coloana12","Coloana13","Coloana14","Coloana15","Coloana16","Coloana17","Coloana18","Coloana19","Coloana20","Coloana21","Coloana22"]
[null,"Elev numărul 1",null,{"$f":"IFERROR(IF(COUNT(Note[[#This Row],[Coloana6]:[Coloana22]])=0,\"\",SUM(Note[[#This Row],[Coloana6]:[Coloana22]])/TotalPuncte),\"\")","v":{"v":0.91,"d":"91.0%"}},{"$f":"IF(COUNT(Note[[#This Row],[Coloana6]:[Coloana22]])=0,\"\",SUM(Note[[#This Row],[Coloana6]:[Coloana22]]))","v":182},{"$f":"IFERROR(IF(Note[[#This Row],[Medie]]<>\"\",HLOOKUP(Note[[#This Row],[Medie]]*TotalPuncte,Catalog,3),\"\"),0)","v":"A-"},{"$f":"IFERROR(IF(Note[[#This Row],[Medie]]<>\"\",HLOOKUP(Note[[#This Row],[Medie]]*TotalPuncte,Catalog,4),\"\"),0)","v":3.67},45,45,92]
[null,"Elev numărul 2",null,{"$f":"IFERROR(IF(COUNT(Note[[#This Row],[Coloana6]:[Coloana22]])=0,\"\",SUM(Note[[#This Row],[Coloana6]:[Coloana22]])/TotalPuncte),\"\")","v":{"v":1,"d":"100.0%"}},{"$f":"IF(COUNT(Note[[#This Row],[Coloana6]:[Coloana22]])=0,\"\",SUM(Note[[#This Row],[Coloana6]:[Coloana22]]))","v":200},{"$f":"IFERROR(IF(Note[[#This Row],[Medie]]<>\"\",HLOOKUP(Note[[#This Row],[Medie]]*TotalPuncte,Catalog,3),\"\"),0)","v":"A+"},{"$f":"IFERROR(IF(Note[[#This Row],[Medie]]<>\"\",HLOOKUP(Note[[#This Row],[Medie]]*TotalPuncte,Catalog,4),\"\"),0)","v":{"v":4,"d":"4.00"}},50,50,100]
[{"$nulls":3},{"$f":"IFERROR(IF(COUNT(Note[[#This Row],[Coloana6]:[Coloana22]])=0,\"\",SUM(Note[[#This Row],[Coloana6]:[Coloana22]])/TotalPuncte),\"\")","v":""},{"$f":"IF(COUNT(Note[[#This Row],[Coloana6]:[Coloana22]])=0,\"\",SUM(Note[[#This Row],[Coloana6]:[Coloana22]]))","v":""},{"$f":"IFERROR(IF(Note[[#This Row],[Medie]]<>\"\",HLOOKUP(Note[[#This Row],[Medie]]*TotalPuncte,Catalog,3),\"\"),0)","v":""},{"$f":"IFERROR(IF(Note[[#This Row],[Medie]]<>\"\",HLOOKUP(Note[[#This Row],[Medie]]*TotalPuncte,Catalog,4),\"\"),0)","v":""}]
[{"$nulls":3},{"$f":"IFERROR(IF(COUNT(Note[[#This Row],[Coloana6]:[Coloana22]])=0,\"\",SUM(Note[[#This Row],[Coloana6]:[Coloana22]])/TotalPuncte),\"\")","v":""},{"$f":"IF(COUNT(Note[[#This Row],[Coloana6]:[Coloana22]])=0,\"\",SUM(Note[[#This Row],[Coloana6]:[Coloana22]]))","v":""},{"$f":"IFERROR(IF(Note[[#This Row],[Medie]]<>\"\",HLOOKUP(Note[[#This Row],[Medie]]*TotalPuncte,Catalog,3),\"\"),0)","v":""},{"$f":"IFERROR(IF(Note[[#This Row],[Medie]]<>\"\",HLOOKUP(Note[[#This Row],[Medie]]*TotalPuncte,Catalog,4),\"\"),0)","v":""}]
[{"$nulls":3},{"$f":"IFERROR(IF(COUNT(Note[[#This Row],[Coloana6]:[Coloana22]])=0,\"\",SUM(Note[[#This Row],[Coloana6]:[Coloana22]])/TotalPuncte),\"\")","v":""},{"$f":"IF(COUNT(Note[[#This Row],[Coloana6]:[Coloana22]])=0,\"\",SUM(Note[[#This Row],[Coloana6]:[Coloana22]]))","v":""},{"$f":"IFERROR(IF(Note[[#This Row],[Medie]]<>\"\",HLOOKUP(Note[[#This Row],[Medie]]*TotalPuncte,Catalog,3),\"\"),0)","v":""},{"$f":"IFERROR(IF(Note[[#This Row],[Medie]]<>\"\",HLOOKUP(Note[[#This Row],[Medie]]*TotalPuncte,Catalog,4),\"\"),0)","v":""}]
[]
[null,"Rezumat curs",null,"Medie",null,"Calificativ literă","Medie generală","","","","","","","","","","",""]
[null," Medie",null,{"$f":"IFERROR(AVERAGE(Note[[#All],[Medie]]),0)","v":{"v":0.9550000000000001,"d":"95.5%"}},null,{"$f":"IFERROR(HLOOKUP(D22*TotalPuncte,Catalog,3),\"\")","v":"A"},{"$f":"IFERROR(AVERAGE(Note[[#All],[Medie generală]]),0)","v":{"v":3.835,"d":"3.84"}},"","","","","","","","","","","","","","","","",""]
[null," Scor maxim",null,{"$f":"IFERROR(MAX(Note[[#All],[Medie]]),0)","v":{"v":1,"d":"100.0%"}},null,{"$f":"IFERROR(HLOOKUP(D23*TotalPuncte,Catalog,3),\"\")","v":"A+"},{"$f":"IFERROR(MAX(Note[[#All],[Medie generală]]),0)","v":{"v":4,"d":"4.00"}},"","","","","","","","","","","","","","","","",""]
[null," Scor minim",null,{"$f":"IFERROR(MIN(Note[[#All],[Medie]]),0)","v":{"v":0.91,"d":"91.0%"}},null,{"$f":"IFERROR(HLOOKUP(D24*TotalPuncte,Catalog,3),\"\")","v":"A-"},{"$f":"IFERROR(MIN(Note[[#All],[Medie generală]]),0)","v":3.67},"","","","","","","","","","","","","","","","",""]